bitfinex/quotes_BTCUSD_20251215
["timestamp","ask_amount","ask_price","bid_price","bid_amount"]
[1765773599808,0.0002,89644.0,89643.0,0.4098456]
[1765773600024,0.0002,89644.0,89636.0,0.02436]
[1765773600025,0.0002,89644.0,89630.0,0.01115697]
[1765773600026,0.01115648,89634.0,89630.0,0.01115697]
[1765773600227,0.01115648,89634.0,89622.0,0.00991]
[1765773600228,0.11126095,89632.0,89624.0,0.24422202]
[1765773600446,0.0111566,89633.0,89629.0,0.0111571]
[1765773600648,0.00011499,89633.0,89629.0,0.0111571]
[1765773601002,0.00011499,89633.0,89632.0,0.0156]
[1765773601324,0.00011499,89633.0,89632.0,0.03996]
[1765773601961,0.00011499,89633.0,89632.0,0.17194434]
[1765773602167,0.00011499,89633.0,89632.0,0.06064434]
[1765773602610,0.00011499,89633.0,89632.0,0.06564434]
[1765773602819,0.00011499,89633.0,89632.0,0.06664434]
[1765773605360,0.00011499,89633.0,89632.0,0.21316327]
[1765773605763,0.0006882,89633.0,89632.0,0.21316327]
[1765773608053,0.0006882,89633.0,89632.0,0.23080327]
[1765773616611,0.0006882,89633.0,89632.0,0.28082166]
[1765773616816,0.0006882,89633.0,89632.0,0.26013732]
[1765773617015,0.0006882,89633.0,89632.0,0.37143732]
[1765773617623,0.0006882,89633.0,89632.0,0.26013732]
[1765773618808,0.0006882,89633.0,89632.0,0.37143732]
[1765773625939,0.0006882,89633.0,89632.0,0.66213732]
[1765773626320,0.0002,89644.0,89643.0,0.16131839]
[1765773626532,0.0002,89644.0,89643.0,0.22668911]
[1765773626533,0.00058321,89644.0,89643.0,0.22668911]
[1765773626916,0.00058321,89644.0,89643.0,0.25074911]
[1765773627136,0.00058321,89644.0,89643.0,0.22843839]
[1765773627964,0.00058321,89644.0,89643.0,0.51913839]
[1765773628344,0.00058321,89644.0,89643.0,0.52613839]
[1765773629084,0.00058321,89644.0,89643.0,0.67565732]
[1765773629489,0.00058321,89644.0,89643.0,0.67265732]
[1765773629691,0.00058321,89644.0,89643.0,0.67565732]
[1765773630689,3.21e-06,89644.0,89643.0,0.75531613]
[1765773630852,0.01171,89690.0,89650.0,0.67510818]
[1765773631053,0.01171,89690.0,89659.0,0.67508578]
[1765773631292,0.01171,89690.0,89659.0,0.85503471]
[1765773631293,0.00031489,89660.0,89659.0,0.85503471]
[1765773631495,0.0002,89695.0,89667.0,0.67506588]
[1765773631806,0.0002,89695.0,89667.0,0.83737481]
[1765773632007,0.00125539,89668.0,89667.0,0.86112481]
[1765773633180,0.00125539,89668.0,89667.0,0.88076481]
[1765773633570,0.00125539,89668.0,89667.0,0.87876481]
[1765773634021,0.00125539,89668.0,89667.0,0.89076481]
[1765773634346,0.00125539,89668.0,89667.0,0.88276481]
[1765773634628,0.00125539,89668.0,89667.0,0.88976481]
[1765773635251,0.00125539,89668.0,89667.0,0.88576481]
[1765773635473,0.00125539,89668.0,89667.0,0.88976481]
[1765773635671,0.00125539,89668.0,89667.0,0.87212481]
[1765773635834,0.00125539,89668.0,89667.0,0.88976481]
[1765773636453,0.00125539,89668.0,89667.0,0.011]
[1765773636454,0.04251826,89668.0,89667.0,0.011]
[1765773636644,0.18324944,89668.0,89667.0,0.011]
[1765773636835,0.15377921,89668.0,89667.0,0.011]
[1765773637039,0.15377921,89668.0,89667.0,0.007]
[1765773637362,0.12241481,89655.0,89651.0,0.01115436]
[1765773637563,0.12758095,89655.0,89653.0,0.22308232]
[1765773637768,0.00181287,89668.0,89651.0,0.01126925]
[1765773637769,0.00181287,89668.0,89661.0,0.22306025]
[1765773637997,0.00181287,89668.0,89661.0,0.01115312]
[1765773637998,0.11287382,89664.0,89661.0,0.01115312]
[1765773638394,0.13507182,89664.0,89661.0,0.01115312]
[1765773638594,0.00048087,89664.0,89661.0,0.01115312]
[1765773638788,0.00048087,89664.0,89663.0,0.01579]
[1765773639045,0.0002,89668.0,89666.0,0.22304998]
[1765773640815,0.01183312,89668.0,89664.0,0.01115274]
[1765773641020,0.02803,89664.0,89662.0,0.25189182]
[1765773641726,0.01171,89664.0,89662.0,0.25189182]
[1765773641923,0.01219087,89664.0,89662.0,0.25189182]
[1765773642122,0.01632,89663.0,89660.0,0.01115324]
[1765773642347,0.01632,89662.0,89660.0,0.01115324]
[1765773642524,0.04013087,89662.0,89660.0,0.23421723]
[1765773643760,0.04013087,89662.0,89658.0,0.22306926]
[1765773643761,0.04013087,89662.0,89658.0,0.23422275]
[1765773643976,0.01632,89659.0,89658.0,0.23422275]
[1765773644182,0.12836504,89659.0,89658.0,0.23422275]
[1765773644510,0.00078409,89659.0,89658.0,0.23422275]
[1765773644656,0.11204504,89659.0,89658.0,0.23422275]
[1765773649384,0.15169504,89659.0,89658.0,0.23422275]
[1765773650495,0.11204504,89659.0,89658.0,0.23422275]
[1765773650714,0.00078409,89659.0,89658.0,0.23422275]
[1765773651880,0.00078409,89659.0,89658.0,0.25001275]
[1765773652103,0.00078409,89659.0,89658.0,0.27376275]
[1765773653488,0.00078409,89659.0,89658.0,0.27489475]
[1765773657411,0.00078409,89659.0,89658.0,0.42141368]
[1765773657831,0.00078409,89659.0,89658.0,0.53271368]
[1765773659297,0.00078409,89659.0,89658.0,0.42141368]
[1765773659476,0.00078409,89659.0,89658.0,0.41530368]
[1765773659705,0.00078409,89659.0,89658.0,0.39766368]
[1765773659908,0.00078409,89659.0,89658.0,0.41530368]
[1765773660113,0.00078409,89659.0,89658.0,0.43960368]
[1765773661223,0.00078409,89659.0,89658.0,0.49527366]
[1765773662397,0.00078409,89659.0,89658.0,0.53491778]
[1765773663210,0.00078409,89659.0,89658.0,0.82561778]
[1765773663407,0.00078409,89659.0,89658.0,0.89162207]
[1765773664536,0.00078409,89659.0,89658.0,0.89562207]
[1765773665896,0.00078409,89659.0,89658.0,0.90262207]
[1765773666123,0.00078409,89659.0,89658.0,0.82935205]
[1765773666564,0.00078409,89659.0,89658.0,0.84699205]
[1765773666771,0.00078409,89659.0,89658.0,0.90262207]
[1765773667014,0.00078409,89659.0,89658.0,0.89862207]
[1765773667226,0.00078409,89659.0,89658.0,0.90162207]
[1765773668127,0.00078409,89659.0,89658.0,0.89462207]
[1765773668334,0.00078409,89659.0,89658.0,0.90062207]
[1765773668562,0.00078409,89659.0,89658.0,0.89462207]
[1765773668727,0.00078409,89659.0,89658.0,0.89162207]
[1765773668940,0.00078409,89659.0,89658.0,0.90062207]
[1765773669324,0.00078409,89659.0,89658.0,0.98013023]
[1765773669756,0.0002,89668.0,89667.0,0.67506588]
[1765773669980,0.0002,89668.0,89667.0,0.69170788]
[1765773670181,0.0002,89668.0,89667.0,0.71472788]
[1765773671203,0.0002,89668.0,89667.0,0.72072788]
[1765773671581,0.0002,89668.0,89667.0,0.71472788]
[1765773671780,0.0002,89668.0,89667.0,0.72172788]
[1765773672336,0.0002,89668.0,89667.0,0.72372788]
[1765773672863,0.0002,89668.0,89667.0,0.72172788]
[1765773673038,0.0002,89668.0,89667.0,0.72572788]
[1765773673761,0.0002,89668.0,89667.0,0.87224681]
[1765773675126,0.0002,89668.0,89667.0,0.76094681]
[1765773675331,0.00047134,89668.0,89667.0,0.87224681]
[1765773676710,0.00047134,89668.0,89667.0,0.77858681]
[1765773677966,0.00047134,89668.0,89667.0,0.83425679]
[1765773680762,0.00047134,89668.0,89667.0,0.88988681]
[1765773686374,0.00047134,89668.0,89667.0,0.96937666]
[1765773687710,0.00047134,89668.0,89667.0,0.88988681]
[1765773688043,0.00047134,89668.0,89667.0,0.96940567]
[1765773688442,0.00047134,89668.0,89667.0,0.88988681]
[1765773692401,0.00047134,89668.0,89667.0,0.47024681]
[1765773692660,0.00047134,89668.0,89667.0,0.48788681]
[1765773693267,0.00047134,89668.0,89667.0,0.54355679]
[1765773695474,0.00047134,89668.0,89667.0,0.83425679]
[1765773700535,0.00047134,89668.0,89667.0,0.77858681]
[1765773702954,0.00047134,89668.0,89667.0,0.81207379]
[1765773710066,1e-08,89668.0,89667.0,0.92337379]
[1765773710267,0.0002,89695.0,89667.0,0.92337379]
[1765773710268,0.0002,89695.0,89680.0,0.67503355]
[1765773710473,0.0002,89695.0,89680.0,0.76706448]
[1765773710678,0.0002,89695.0,89694.0,0.22298035]
[1765773710833,0.0002,89695.0,89694.0,0.25686235]
[1765773711035,0.0002,89695.0,89694.0,0.27979235]
[1765773711465,0.00031108,89695.0,89694.0,0.31327178]
[1765773712374,0.00031108,89695.0,89694.0,0.31827178]
[1765773713191,0.00031108,89695.0,89694.0,0.29534178]
[1765773713371,0.00031108,89695.0,89694.0,0.35499776]
[1765773713572,0.00031108,89695.0,89694.0,0.33935776]
[1765773713770,0.00031108,89695.0,89694.0,0.37992776]
[1765773713995,0.00031108,89695.0,89694.0,0.37792776]
[1765773714392,0.00031108,89695.0,89694.0,0.31427178]
[1765773714916,0.00031108,89695.0,89694.0,0.37892776]
[1765773715334,0.00031108,89695.0,89694.0,0.52544669]
[1765773715530,0.00031108,89695.0,89694.0,0.46579071]
[1765773716751,0.04030108,89695.0,89694.0,0.18599836]
[1765773716947,0.04030108,89695.0,89694.0,0.006]
[1765773716948,0.04078195,89695.0,89694.0,0.006]
[1765773717244,0.1520429,89695.0,89694.0,0.006]
[1765773717446,0.15285666,89695.0,89694.0,0.22398035]
[1765773717968,0.15285666,89695.0,89694.0,0.22798035]
[1765773718579,0.15285666,89695.0,89694.0,0.22698035]
[1765773718781,0.15285666,89695.0,89694.0,0.22798035]
[1765773731798,0.15285666,89695.0,89694.0,0.005]
[1765773732720,0.15285666,89695.0,89694.0,0.004]
[1765773733169,0.11126095,89692.0,89691.0,0.01114939]
[1765773733371,0.12752095,89692.0,89691.0,0.01114939]
[1765773733568,0.15125095,89692.0,89691.0,0.01114939]
[1765773733748,0.15125095,89692.0,89690.0,0.01114951]
[1765773733749,0.11126095,89691.0,89690.0,0.01114951]
[1765773733950,0.15125095,89691.0,89690.0,0.01114951]
[1765773734322,0.11126095,89690.0,89689.0,0.01114963]
[1765773734533,0.15125095,89690.0,89689.0,0.01114963]
[1765773735628,0.15125095,89690.0,89688.0,0.01114976]
[1765773735629,0.11126095,89689.0,89688.0,0.01114976]
[1765773735852,0.13499095,89689.0,89688.0,0.01114976]
[1765773736586,0.15125095,89689.0,89688.0,0.01114976]
[1765773737867,0.11126095,89686.0,89684.0,0.01115026]
[1765773738072,0.02778,89685.0,89684.0,0.01115026]
[1765773738295,0.05151,89685.0,89684.0,0.01115026]
[1765773739639,0.06266013,89685.0,89677.0,0.05090954]
[1765773739844,0.13904095,89678.0,89677.0,0.01115113]
[1765773740248,0.16277095,89678.0,89677.0,0.01115113]
[1765773741404,0.11126095,89677.0,89675.0,0.01115137]
[1765773741617,0.13499095,89677.0,89675.0,0.01115137]
[1765773741763,0.03999,89676.0,89673.0,0.05091003]
[1765773741977,0.11126095,89673.0,89672.0,0.22303382]
[1765773742179,0.12752095,89673.0,89672.0,0.22303382]
[1765773742398,0.15125095,89673.0,89672.0,0.22303382]
[1765773743366,0.15125095,89673.0,89672.0,0.22703382]
[1765773744323,0.15125095,89673.0,89672.0,0.22803382]
[1765773744526,0.022671,89678.0,89672.0,0.22803382]
[1765773744527,0.01152,89678.0,89677.0,0.22302262]
[1765773744839,0.12278095,89678.0,89677.0,0.22302262]
[1765773744981,0.1230824,89678.0,89677.0,0.22302262]
[1765773745609,0.1468124,89678.0,89677.0,0.22302262]
[1765773745808,0.1630724,89678.0,89677.0,0.22302262]
[1765773746950,0.1660724,89678.0,89677.0,0.22302262]
[1765773748848,0.1423424,89678.0,89677.0,0.22302262]
[1765773749069,0.1666524,89678.0,89677.0,0.22302262]
[1765773750923,0.1666524,89678.0,89675.0,0.01115137]
[1765773751125,0.12776095,89676.0,89675.0,0.01115137]
[1765773751849,0.15207095,89676.0,89675.0,0.01115137]
[1765773753453,0.15607095,89676.0,89675.0,0.01115137]
[1765773754295,0.15607095,89676.0,89671.0,0.01115187]
[1765773754296,0.11126095,89672.0,89671.0,0.01115187]
[1765773754531,0.14010095,89672.0,89671.0,0.01115187]
[1765773754690,0.16441095,89672.0,89671.0,0.01115187]
[1765773755529,0.16441095,89672.0,89671.0,0.01515187]
[1765773755728,0.16441095,89672.0,89671.0,0.01315187]
[1765773756449,0.16441095,89672.0,89671.0,0.01115187]
[1765773756655,0.16741095,89672.0,89671.0,0.01115187]
[1765773764410,0.05615,89672.0,89671.0,0.01115187]
[1765773764582,0.16741095,89672.0,89671.0,0.01115187]
[1765773766113,0.05615,89672.0,89671.0,0.01115187]
[1765773767167,0.01534,89672.0,89671.0,0.01115187]
[1765773767370,0.003,89672.0,89671.0,0.01115187]
[1765773769094,0.11426095,89672.0,89671.0,0.01115187]
[1765773773954,0.13076095,89672.0,89671.0,0.01115187]
[1765773774191,0.15507095,89672.0,89669.0,0.23419265]
[1765773774378,0.12776095,89670.0,89669.0,0.23419265]
[1765773774532,0.04081,89670.0,89669.0,0.23419265]
[1765773774738,0.15207095,89670.0,89669.0,0.23419265]
[1765773775568,0.04081,89670.0,89669.0,0.23419265]
[1765773775798,0.15207095,89670.0,89669.0,0.23419265]
[1765773777818,0.15507095,89670.0,89669.0,0.23419265]
[1765773779837,0.04381,89670.0,89669.0,0.23419265]
[1765773780046,0.15507095,89670.0,89669.0,0.23419265]
[1765773781121,0.04381,89670.0,89668.0,0.01115225]
[1765773781328,0.16378095,89669.0,89668.0,0.23419493]
[1765773781720,0.11126095,89669.0,89668.0,0.24971493]
[1765773781956,0.003,89670.0,89668.0,0.31541534]
[1765773782157,0.00024117,89676.0,89675.0,0.22302759]
[1765773782570,0.00024117,89676.0,89675.0,0.26335759]
[1765773782767,0.00024117,89676.0,89675.0,0.23854759]
[1765773783629,0.00024117,89676.0,89675.0,0.62284798]
[1765773783818,1.17e-06,89676.0,89675.0,0.79372694]
[1765773784011,1.17e-06,89676.0,89675.0,0.76763017]
[1765773785282,0.00300117,89676.0,89675.0,0.76763017]
[1765773785915,0.00300117,89676.0,89675.0,0.77263017]
[1765773786166,0.00300117,89676.0,89675.0,0.76763017]
[1765773786418,0.00300117,89676.0,89675.0,0.77763017]
[1765773786624,1.17e-06,89676.0,89675.0,0.77763017]
[1765773787240,1.17e-06,89676.0,89675.0,0.85701845]
[1765773787485,1.17e-06,89676.0,89675.0,0.78463017]
[1765773788945,0.00031108,89695.0,89694.0,0.22298035]
[1765773789154,0.00031108,89695.0,89694.0,0.36853235]
[1765773789367,0.00031108,89695.0,89694.0,0.39334235]
[1765773789571,0.00088369,89695.0,89694.0,0.76753782]
[1765773789743,0.00088369,89695.0,89694.0,0.80720909]
[1765773789985,0.00088369,89695.0,89694.0,0.76753782]
[1765773790186,0.00088369,89695.0,89694.0,0.77353782]
[1765773790501,0.00088369,89695.0,89694.0,0.77753782]
[1765773790714,0.00088369,89695.0,89694.0,0.83704473]
[1765773790961,0.00088369,89695.0,89694.0,0.77753782]
[1765773792192,0.01232,89736.0,89733.0,0.01114417]
[1765773792342,0.01318394,89736.0,89733.0,0.23402587]
[1765773793144,0.11126095,89734.0,89733.0,0.23402587]
[1765773794673,0.11626095,89734.0,89733.0,0.23402587]
[1765773797855,0.11626095,89734.0,89728.0,0.01114479]
[1765773797856,0.11126095,89725.0,89724.0,0.01114529]
[1765773798003,0.11126095,89718.0,89717.0,0.01114615]
[1765773798208,0.13958095,89718.0,89717.0,0.01114615]
[1765773799114,0.16378095,89718.0,89717.0,0.01114615]
[1765773799320,0.16378095,89718.0,89717.0,0.007]
[1765773799904,0.05252,89718.0,89717.0,0.007]
[1765773800025,0.16378095,89718.0,89717.0,0.007]
[1765773800230,0.16378095,89718.0,89717.0,0.005]
[1765773800682,0.16778095,89718.0,89717.0,0.005]
[1765773801258,1.16778095,89718.0,89717.0,0.005]
[1765773801459,1.16778095,89718.0,89700.0,0.47230718]
[1765773801460,0.01114777,89704.0,89700.0,0.48345545]
[1765773801664,0.13342095,89701.0,89700.0,0.01114827]
[1765773801843,0.15762095,89701.0,89699.0,0.01114839]
[1765773802053,0.11126095,89697.0,89696.0,0.01114876]
[1765773802275,0.11126095,89697.0,89695.0,0.01114889]
[1765773802276,0.11126095,89696.0,89695.0,0.01114889]
[1765773802493,0.12726095,89696.0,89695.0,0.01114889]
[1765773802698,0.15146095,89696.0,89695.0,0.01114889]
[1765773802854,0.11126095,89694.0,89693.0,0.01114914]
[1765773803257,0.15146095,89694.0,89693.0,0.01114914]
[1765773803677,0.0402,89694.0,89692.0,0.01114926]
[1765773803877,0.15146095,89693.0,89692.0,0.01114926]
[1765773804753,0.12726095,89693.0,89692.0,0.01114926]
[1765773805126,0.15146095,89693.0,89692.0,0.01114926]
[1765773805328,0.15146095,89693.0,89692.0,0.01614926]
[1765773805486,0.0402,89693.0,89692.0,0.01614926]
[1765773805691,0.15146095,89693.0,89692.0,0.01614926]
[1765773805907,0.12726095,89693.0,89692.0,0.01614926]
[1765773806134,0.12726095,89693.0,89692.0,0.01814926]
[1765773806556,0.12726095,89693.0,89692.0,0.01114926]
[1765773806975,0.13126095,89693.0,89692.0,0.01114926]
[1765773807279,0.13126095,89693.0,89690.0,0.01114951]
[1765773807280,0.11126095,89691.0,89690.0,0.01114951]
[1765773807484,0.01114963,89689.0,89685.0,0.01115013]
[1765773807690,0.13871095,89686.0,89685.0,0.00011108]
[1765773808266,0.16142095,89686.0,89685.0,0.00011108]
[1765773809230,0.16142095,89686.0,89685.0,0.00711108]
[1765773809365,0.16142095,89686.0,89685.0,0.00211108]
[1765773809768,0.16142095,89686.0,89685.0,0.00011108]
[1765773810041,0.16542095,89686.0,89685.0,0.00011108]
[1765773814156,0.14271095,89686.0,89685.0,0.00011108]
[1765773814757,0.03145,89686.0,89685.0,0.00011108]
[1765773814908,0.0158,89686.0,89685.0,0.00011108]
[1765773816036,0.004,89686.0,89685.0,0.22311381]
[1765773817046,0.11526095,89686.0,89685.0,0.22311381]
[1765773817246,0.004,89686.0,89685.0,0.22311381]
[1765773822302,0.004,89686.0,89685.0,0.00011108]
[1765773822652,0.004,89686.0,89685.0,0.22311381]
[1765773825984,0.004,89686.0,89685.0,0.00011108]
[1765773827413,0.004,89686.0,89685.0,0.04123308]
[1765773828726,0.004,89686.0,89685.0,0.00124308]
[1765773828899,0.11526095,89686.0,89685.0,0.00124308]
[1765773837768,0.11526095,89686.0,89685.0,0.03396308]
[1765773837912,0.004,89686.0,89685.0,0.03396308]
[1765773838543,0.004,89686.0,89685.0,0.04941308]
[1765773838757,0.004,89686.0,89685.0,0.07171335]
[1765773839366,0.004,89686.0,89685.0,0.13146204]
[1765773839720,0.004,89686.0,89685.0,0.07171335]
[1765773839921,0.11126095,89706.0,89700.0,0.01114827]
[1765773840341,0.0176,89708.0,89700.0,0.01114827]
[1765773840504,0.02874727,89708.0,89701.0,0.22296295]
[1765773840707,0.11126095,89706.0,89701.0,0.22296295]
[1765773841373,0.01146,89709.0,89701.0,0.22296295]
[1765773841886,0.01146,89709.0,89701.0,0.24582295]
[1765773842119,0.00524106,89703.0,89701.0,0.24582295]
[1765773842557,0.00024106,89703.0,89701.0,0.22296295]
[1765773842758,0.00024106,89703.0,89702.0,0.03831]
[1765773842961,0.00524106,89703.0,89702.0,0.03831]
[1765773843375,0.00524106,89703.0,89702.0,0.01545]
[1765773843621,0.00024106,89703.0,89702.0,0.01545]
[1765773844817,0.00524106,89703.0,89702.0,0.03831]
[1765773847121,0.00524106,89703.0,89702.0,0.01545]
[1765773847347,0.00524106,89703.0,89701.0,0.22296295]
[1765773847728,0.00524106,89703.0,89702.0,0.01545]
[1765773848059,0.00524106,89703.0,89702.0,0.2228423]
[1765773848258,0.00024106,89703.0,89702.0,0.33398193]
[1765773848479,0.00524106,89703.0,89702.0,0.28586093]
[1765773849175,0.00024106,89703.0,89702.0,0.28586093]
[1765773849391,0.00424106,89703.0,89702.0,0.28586093]
[1765773849884,0.00424106,89703.0,89702.0,0.31472093]
[1765773850146,0.00424106,89703.0,89702.0,0.36473932]
[1765773850296,0.00424106,89703.0,89702.0,0.42426565]
[1765773850702,0.00024106,89703.0,89702.0,0.42426565]
[1765773851097,0.00024106,89703.0,89702.0,0.42726565]
[1765773851368,0.00024106,89703.0,89702.0,0.36773932]
[1765773851584,0.00024106,89703.0,89702.0,0.65843932]
[1765773854196,0.00024106,89703.0,89702.0,0.7178954]
[1765773855226,0.00024106,89703.0,89702.0,0.65843932]
[1765773855427,0.00024106,89703.0,89702.0,0.7178954]
[1765773856314,0.00024106,89703.0,89702.0,0.65843932]
[1765773857873,0.00024106,89703.0,89702.0,0.7178954]
[1765773858171,0.00024106,89703.0,89702.0,0.54713932]
[1765773859177,0.00024106,89703.0,89702.0,0.51472093]
[1765773859387,0.00024106,89703.0,89702.0,0.53674847]
[1765773859582,0.00024106,89703.0,89702.0,0.51472093]
[1765773867176,0.00024106,89703.0,89702.0,0.57417701]
[1765773867889,0.00024106,89703.0,89702.0,0.51472093]
[1765773868328,0.00024106,89703.0,89702.0,0.57417701]
[1765773868532,0.00024106,89703.0,89702.0,0.51472093]
[1765773869476,0.00024106,89703.0,89702.0,0.49712093]
[1765773869833,0.00024106,89703.0,89702.0,0.51472093]
[1765773870577,0.00024106,89703.0,89702.0,0.57039091]
[1765773871230,0.00024106,89703.0,89702.0,0.51472093]
[1765773871525,0.00024106,89703.0,89702.0,0.49712093]
[1765773871735,0.00024106,89703.0,89702.0,0.51472093]
[1765773874715,0.00024106,89703.0,89702.0,0.49712093]
[1765773874870,0.00024106,89703.0,89702.0,0.51472093]
[1765773877290,0.00024106,89703.0,89702.0,0.59388265]
[1765773878531,0.00024106,89703.0,89702.0,0.64955263]
[1765773878751,0.00024106,89703.0,89702.0,0.59388265]
[1765773879681,0.00024106,89703.0,89702.0,0.51472093]
[1765773879964,0.00024106,89703.0,89702.0,0.57039091]
[1765773881342,0.00024106,89703.0,89702.0,0.64955263]
[1765773881744,0.00024106,89703.0,89702.0,0.59388265]
[1765773882252,0.00024106,89703.0,89702.0,0.51472093]
[1765773883016,0.00024106,89703.0,89702.0,0.59388265]
[1765773883338,0.00024106,89703.0,89702.0,0.51472093]
[1765773883871,0.00024106,89703.0,89702.0,0.59388265]
[1765773884076,0.00024106,89703.0,89702.0,0.57628265]
[1765773884294,0.00024106,89703.0,89702.0,0.59388265]
[1765773884509,0.00024106,89703.0,89702.0,0.57039091]
[1765773893722,0.00024106,89703.0,89702.0,0.51472093]
[1765773894393,0.00024106,89703.0,89702.0,0.62602093]
[1765773896386,0.00024106,89703.0,89702.0,0.67603932]
[1765773898053,0.01196,89735.0,89732.0,0.01114429]
[1765773898253,0.01244087,89735.0,89733.0,0.22288344]
[1765773898633,0.02362,89734.0,89733.0,0.22288344]
[1765773898832,0.01244087,89735.0,89733.0,0.22288344]
[1765773899019,0.00048087,89735.0,89733.0,0.22288344]
[1765773899368,0.00286394,89735.0,89733.0,0.22288344]
[1765773900295,0.00286394,89735.0,89733.0,0.24632344]
[1765773900519,0.00238307,89735.0,89734.0,0.07871679]
[1765773900734,0.00238307,89735.0,89734.0,0.151392]
[1765773900903,0.00238307,89735.0,89734.0,0.001132]
[1765773901231,0.05246307,89735.0,89734.0,0.03974566]
[1765773901435,0.05246307,89735.0,89732.0,0.23402973]
[1765773901739,0.01270307,89735.0,89733.0,0.22388344]
[1765773902150,0.01270307,89735.0,89733.0,0.22288344]
[1765773902642,0.03976,89734.0,89733.0,0.22288344]
[1765773902863,0.04024087,89734.0,89732.0,0.23402898]
[1765773903063,0.11126095,89731.0,89730.0,0.23403516]
[1765773903213,0.12740095,89731.0,89730.0,0.23403516]
[1765773903414,0.15150182,89731.0,89730.0,0.23403516]
[1765773904366,0.15150182,89731.0,89730.0,0.01114454]
[1765773904754,0.15150182,89731.0,89730.0,0.002]
[1765773905142,0.15350182,89731.0,89730.0,0.002]
[1765773907428,0.04224087,89731.0,89730.0,0.002]
[1765773907630,0.00248087,89731.0,89730.0,0.002]
[1765773908451,0.15350182,89731.0,89730.0,0.002]
[1765773909095,0.04224087,89731.0,89730.0,0.002]
[1765773909306,0.15350182,89731.0,89730.0,0.002]
[1765773909914,0.01114504,89726.0,89722.0,0.01114553]
[1765773910125,0.02846,89723.0,89722.0,0.01114553]
[1765773910329,0.02906247,89723.0,89722.0,0.01114553]
[1765773910543,0.05268247,89723.0,89722.0,0.01114553]
[1765773911302,0.05468247,89723.0,89722.0,0.01114553]
[1765773912845,0.05468247,89723.0,89722.0,0.23405629]
[1765773915421,0.05468247,89723.0,89718.0,0.23406604]
[1765773915422,0.06582788,89723.0,89718.0,0.01114603]
[1765773915639,0.06582788,89723.0,89713.0,0.69539051]
[1765773915640,0.11126095,89715.0,89713.0,0.70653898]
[1765773915806,0.11126095,89715.0,89714.0,0.01114653]
[1765773916033,0.02846,89714.0,89711.0,0.03974566]
[1765773916227,0.02846,89714.0,89706.0,0.31607535]
[1765773916228,0.01614,89712.0,89709.0,0.03974566]
[1765773916437,0.01614,89712.0,89707.0,0.26269153]
[1765773916438,0.02846,89709.0,89707.0,0.26269153]
[1765773916792,0.05208,89709.0,89707.0,0.26269153]
[1765773916996,0.05208,89709.0,89708.0,0.05089293]
[1765773917386,0.05208,89709.0,89708.0,0.01114727]
[1765773917584,0.05208,89709.0,89708.0,0.05089293]
[1765773917778,0.02846,89709.0,89708.0,0.01114727]
[1765773918008,0.02846,89709.0,89708.0,0.05089293]
[1765773918413,0.02846,89709.0,89708.0,0.01114727]
[1765773918815,0.02846,89709.0,89708.0,0.01314727]
[1765773919325,0.05308,89709.0,89708.0,0.01314727]
[1765773920772,0.02946,89709.0,89708.0,0.01314727]
[1765773921375,0.05308,89709.0,89708.0,0.01314727]
[1765773922116,0.05308,89709.0,89708.0,0.002]
[1765773923511,0.001,89709.0,89708.0,0.24046555]
[1765773923713,0.001,89709.0,89708.0,0.26503755]
[1765773923918,0.001,89709.0,89708.0,0.29851317]
[1765773924121,0.001,89709.0,89708.0,0.46946049]
[1765773924523,0.001,89709.0,89708.0,0.40981317]
[1765773924752,0.001,89709.0,89708.0,0.40781317]
[1765773924925,0.001,89709.0,89708.0,0.47242604]
[1765773925106,0.00024102,89711.0,89710.0,0.33424058]
[1765773925309,0.00024102,89711.0,89710.0,0.35089258]
[1765773925572,0.00024102,89711.0,89710.0,0.37433258]
[1765773925784,0.00024102,89711.0,89710.0,0.40780652]
[1765773925985,0.00024102,89711.0,89710.0,0.55432545]
[1765773926204,0.00024102,89711.0,89710.0,0.40706545]
[1765773926619,0.00024102,89711.0,89710.0,0.41306545]
[1765773926865,0.00024102,89711.0,89710.0,0.42858545]
[1765773927089,0.00024102,89711.0,89710.0,0.44866545]
[1765773927931,0.00024102,89711.0,89710.0,0.44266545]
[1765773928387,0.00024102,89711.0,89710.0,0.44766545]
[1765773928542,0.00024102,89711.0,89710.0,0.44966545]
[1765773933341,0.00024102,89711.0,89710.0,0.50927216]
[1765773933542,0.00024102,89711.0,89710.0,0.44966545]
[1765773935045,0.00024102,89711.0,89710.0,0.41106545]
[1765773935223,0.01183102,89711.0,89710.0,0.37759151]
[1765773935608,0.01183102,89711.0,89710.0,0.38448151]
[1765773935814,0.00024102,89711.0,89710.0,0.38448151]
[1765773936034,0.00024102,89711.0,89710.0,0.38248151]
[1765773936443,0.00424102,89711.0,89710.0,0.38248151]
[1765773936609,0.00424102,89711.0,89710.0,0.41612368]
[1765773936944,0.05509102,89711.0,89710.0,0.40923368]
[1765773937142,0.05509102,89711.0,89710.0,0.36945951]
[1765773937345,0.01583102,89711.0,89710.0,0.36945951]
[1765773937548,0.00424102,89711.0,89710.0,0.36945951]
[1765773937957,0.00424102,89711.0,89710.0,0.22294058]
[1765773944307,0.05509102,89711.0,89708.0,0.01114727]
[1765773944527,0.01602,89709.0,89708.0,0.01114727]
[1765773944962,0.03926,89709.0,89708.0,0.01114727]
[1765773945438,0.01583102,89711.0,89709.0,0.22294307]
[1765773945439,0.01183102,89711.0,89709.0,0.22294307]
[1765773945645,0.01383102,89711.0,89709.0,0.22294307]
[1765773946689,0.00024102,89711.0,89709.0,0.22294307]
[1765773947846,0.00424102,89711.0,89709.0,0.22294307]
[1765773951967,0.03926,89710.0,89709.0,0.22294307]
[1765773952307,0.15052095,89710.0,89707.0,0.23409516]
[1765773952512,0.01602,89708.0,89707.0,0.23409516]
[1765773952726,0.01602,89708.0,89707.0,0.0111474]
[1765773952930,0.03926,89708.0,89707.0,0.0111474]
[1765773954354,0.03926,89708.0,89707.0,0.0121474]
[1765773955667,0.01602,89708.0,89707.0,0.0161474]
[1765773956079,0.00024102,89711.0,89710.0,0.22294058]
[1765773957604,0.00424102,89711.0,89710.0,0.22294058]
[1765773964222,0.01607102,89711.0,89710.0,0.22294058]
[1765773964630,0.01607102,89711.0,89708.0,0.01114727]
[1765773964889,0.02381,89710.0,89708.0,0.01114727]
[1765773965635,0.00024102,89711.0,89709.0,0.22294307]
[1765773965813,0.00424102,89711.0,89709.0,0.22294307]
[1765773966317,0.00024102,89711.0,89709.0,0.22294307]
[1765773966711,0.004,89710.0,89709.0,0.22294307]
[1765773967057,0.00024102,89711.0,89709.0,0.22294307]
[1765773967507,0.00024102,89711.0,89710.0,0.07870417]
[1765773967714,0.00024102,89711.0,89710.0,0.040062]
[1765773968358,0.00424102,89711.0,89710.0,0.040062]
[1765773969048,0.00024102,89711.0,89710.0,0.016452]
[1765773969466,0.00424102,89711.0,89710.0,0.016452]
[1765773970004,0.00424102,89711.0,89710.0,0.001132]